bitfinex/quotes_ETHUSD_20251122
["timestamp","ask_amount","ask_price","bid_price","bid_amount"]
[1763818113854,0.126,2720.5,2720.4,8.57507708]
[1763818114243,0.126,2720.5,2720.4,4.79904707]
[1763818114545,0.126,2720.5,2720.4,4.68302265]
[1763818114970,0.126,2720.5,2720.4,1.00709264]
[1763818115177,0.126,2720.5,2720.4,4.68302265]
[1763818119486,0.5776,2720.5,2720.4,0.90699264]
[1763818119700,1.0428,2720.5,2720.4,0.90699264]
[1763818119984,0.5776,2720.5,2720.4,0.90699264]
[1763818120144,0.126,2720.5,2720.4,4.68302265]
[1763818122455,0.002,2720.5,2720.4,8.57507708]
[1763818127179,0.002,2720.5,2720.4,12.38507708]
[1763818129215,0.002,2720.5,2720.4,12.28497708]
[1763818131095,0.002,2720.5,2720.4,8.57507708]
[1763818131781,0.002,2720.5,2720.4,8.72235275]
[1763818132189,0.002,2720.5,2720.4,12.60035275]
[1763818132488,0.002,2720.5,2720.4,12.50025275]
[1763818132690,0.002,2720.5,2720.4,12.60035275]
[1763818135308,0.002,2720.5,2720.4,12.50025275]
[1763818136200,0.002,2720.5,2720.4,12.60035275]
[1763818136608,0.002,2720.5,2720.4,12.50025275]
[1763818137196,0.002,2720.5,2720.4,8.60819832]
[1763818137403,0.002,2720.5,2720.4,8.70829832]
[1763818138987,0.002,2720.5,2720.4,8.80839832]
[1763818139492,0.002,2720.5,2720.4,8.70829832]
[1763818140416,0.002,2720.5,2720.4,4.83029832]
[1763818140621,0.002,2720.5,2720.4,8.65901205]
[1763818140820,0.002,2720.5,2720.4,8.62225275]
[1763818141736,0.002,2720.5,2720.4,8.52215275]
[1763818142086,0.002,2720.5,2720.4,8.62225275]
[1763818142431,0.002,2720.5,2720.4,8.52215275]
[1763818142609,0.4536,2720.5,2720.4,8.52215275]
[1763818142805,0.9188,2720.5,2720.4,1.05426831]
[1763818143225,0.002,2720.5,2720.4,4.73019832]
[1763818143410,0.002,2720.5,2720.4,4.83029832]
[1763818143595,0.002,2720.5,2720.4,4.86705762]
[1763818144290,0.002,2720.5,2720.4,4.83029832]
[1763818144516,0.002,2720.5,2720.4,4.86705762]
[1763818144924,0.002,2720.5,2720.4,8.40340509]
[1763818145125,0.002,2720.5,2720.4,8.36664579]
[1763818145827,0.9688,2720.5,2720.4,1.05426831]
[1763818146126,0.9688,2720.5,2720.4,0.90699264]
[1763818146338,0.002,2720.5,2720.4,4.58292265]
[1763818146502,0.4732,2720.5,2720.4,4.58292265]
[1763818146698,0.002,2720.5,2720.4,8.15602942]
[1763818146897,0.9688,2720.5,2720.4,8.11927012]
[1763818147096,0.9688,2720.5,2720.4,0.90699264]
[1763818147299,0.9688,2720.5,2720.4,4.58292265]
[1763818147536,0.4732,2720.5,2720.4,4.58292265]
[1763818147939,0.9688,2720.5,2720.4,4.58292265]
[1763818151040,0.002,2720.5,2720.4,8.11927012]
[1763818151414,0.002,2720.5,2720.4,8.21937012]
[1763818153520,0.002,2720.5,2720.4,8.3666485]
[1763818153933,0.4732,2720.5,2720.4,8.2665485]
[1763818154127,0.002,2720.5,2720.4,4.59061849]
[1763818154344,0.002,2720.5,2720.4,8.2665485]
[1763818154657,0.9688,2720.5,2720.4,8.2665485]
[1763818161157,0.9688,2720.5,2720.4,4.58292265]
[1763818162255,0.9688,2720.5,2720.4,0.90699264]
[1763818162956,0.9688,2720.5,2720.4,4.58292265]
[1763818163264,1.0928,2720.5,2720.4,4.58292265]
[1763818163831,1.0928,2720.5,2720.4,0.90699264]
[1763818164260,1.0928,2720.5,2720.4,4.58292265]
[1763818164560,1.0928,2720.5,2720.4,0.90699264]
[1763818164946,1.0928,2720.5,2720.4,4.58292265]
[1763818165356,1.0928,2720.5,2720.4,0.90699264]
[1763818165754,1.0928,2720.5,2720.4,4.58292265]
[1763818166766,1.0928,2720.5,2720.4,0.90699264]
[1763818166955,1.0928,2720.5,2720.4,4.58292265]
[1763818167670,1.0928,2720.5,2720.4,0.90699264]
[1763818168164,1.0928,2720.5,2720.4,4.58292265]
[1763818170679,1.0928,2720.5,2720.4,0.90699264]
[1763818170986,1.0928,2720.5,2720.4,4.58292265]
[1763818171978,0.002,2720.5,2720.4,4.68302265]
[1763818172177,0.002,2720.5,2720.4,4.58292265]
[1763818176566,0.002,2720.5,2720.4,4.71978195]
[1763818177084,0.002,2720.5,2720.4,4.58292265]
[1763818177262,0.002,2720.5,2720.4,8.26655447]
[1763818178045,0.002,2720.5,2720.4,8.36665447]
[1763818178795,0.002,2720.5,2720.4,8.46675447]
[1763818182979,0.002,2720.5,2720.4,8.36665447]
[1763818186287,0.002,2720.5,2720.4,8.46675447]
[1763818186489,0.002,2720.5,2720.4,12.34475447]
[1763818188765,0.002,2720.5,2720.4,15.88110194]
[1763818190066,0.002,2720.5,2720.4,12.24465447]
[1763818192306,0.002,2720.5,2720.4,12.34475447]
[1763818192507,0.002,2720.5,2720.4,16.15475447]
[1763818193709,0.002,2720.7,2720.6,3.878]
[1763818193908,0.002,2720.7,2720.6,11.08755153]
[1763818194105,0.002,2720.7,2720.6,12.05788758]
[1763818194611,0.002,2720.8,2720.7,8.46051732]
[1763818194781,0.002,2720.8,2720.7,8.66071732]
[1763818195309,0.002,2721.4,2721.2,4.78499264]
[1763818195610,0.002,2721.4,2721.2,8.32134011]
[1763818195979,0.002,2721.4,2721.2,8.46856158]
[1763818196609,0.4617,2721.3,2721.2,8.46856158]
[1763818197406,0.4617,2721.3,2721.2,12.14341091]
[1763818198699,0.002,2721.3,2721.2,12.14341091]
[1763818199103,0.002,2721.3,2721.2,12.24351091]
[1763818201920,0.4617,2721.3,2721.2,8.26541091]
[1763818202124,0.9581,2721.3,2721.2,8.26541091]
[1763818202308,0.9581,2721.3,2721.2,1.05421411]
[1763818202534,0.9581,2721.3,2721.2,4.58184197]
[1763818203134,0.9581,2721.3,2721.2,0.90699264]
[1763818203593,0.9581,2721.3,2720.8,7.21165192]
[1763818203796,0.6418,2720.9,2720.8,7.21165192]
[1763818203993,0.6418,2720.9,2720.8,8.11864456]
[1763818204292,1.1382,2720.9,2720.8,7.21165192]
[1763818204497,1.1382,2720.9,2720.8,8.11864456]
[1763818205002,1.1382,2720.9,2720.8,4.58229709]
[1763818205835,1.1382,2720.9,2720.8,0.90699264]
[1763818206906,0.6418,2720.9,2720.8,4.58238223]
[1763818207214,1.0984,2720.9,2720.8,4.58238223]
[1763818208211,0.183,2721.1,2720.8,12.04586864]
[1763818208411,0.4713,2720.9,2720.8,8.37047905]
[1763818208617,0.4713,2720.9,2720.8,4.69508946]
[1763818208803,0.9279,2720.9,2720.8,8.37047905]
[1763818209134,0.124,2721.0,2720.8,12.04586864]
[1763818209333,0.5806,2721.0,2720.8,12.04586864]
[1763818209717,0.9279,2720.9,2720.8,8.37047905]
[1763818210303,0.4713,2720.9,2720.8,8.37047905]
[1763818210502,0.124,2721.0,2720.8,12.04586864]
[1763818210703,0.002,2721.3,2720.9,1.00709264]
[1763818210938,0.4586,2721.3,2720.8,15.45386559]
[1763818211118,0.4586,2721.3,2720.9,0.90699264]
[1763818211521,0.4713,2721.0,2720.9,0.90699264]
[1763818211912,0.9279,2721.0,2720.9,0.90699264]
[1763818212309,0.9279,2721.0,2720.9,4.58224715]
[1763818212646,0.9279,2721.0,2720.8,4.31488715]
[1763818212943,1.1109,2720.9,2720.8,5.22187979]
[1763818213247,1.2349,2720.9,2720.8,5.22187979]
[1763818214749,0.002,2721.3,2720.9,0.90699264]
[1763818214955,0.002,2721.3,2721.2,4.69508946]
[1763818215252,0.002,2721.3,2721.2,4.79518946]
[1763818215549,0.002,2721.3,2721.2,4.94241634]
[1763818216551,0.002,2721.3,2721.2,8.61726567]
[1763818218147,0.002,2721.3,2721.2,8.51716567]
[1763818218461,0.002,2721.3,2721.2,12.32716567]
[1763818218749,0.002,2721.3,2721.2,12.42726567]
[1763818218947,0.002,2721.3,2721.2,12.49526567]
[1763818219127,0.002,2721.3,2721.2,12.59536567]
[1763818219730,0.002,2721.3,2721.2,12.49526567]
[1763818220572,0.4733,2721.3,2721.2,8.51716567]
[1763818220860,0.9299,2721.3,2721.2,4.72906885]
[1763818221030,0.002,2721.3,2721.2,4.72906885]
[1763818221444,0.002,2721.3,2721.2,4.76581734]
[1763818222051,0.002,2721.3,2721.2,4.86591734]
[1763818222355,0.002,2721.3,2721.2,4.82916885]
[1763818222922,0.002,2721.3,2721.2,4.72906885]
[1763818223139,0.4733,2721.3,2721.2,4.72906885]
[1763818224067,0.4733,2721.3,2721.2,8.53906885]
[1763818224242,0.002,2721.3,2721.2,8.53906885]
[1763818225354,0.4733,2721.3,2721.2,8.53906885]
[1763818225670,0.9299,2721.3,2721.2,8.53906885]
[1763818228064,0.9299,2721.3,2721.2,4.72906885]
[1763818228571,0.002,2721.3,2721.2,4.82916885]
[1763818228771,0.002,2721.3,2721.2,4.86591734]
[1763818229983,0.002,2721.3,2721.2,8.74391734]
[1763818230189,0.002,2721.3,2721.2,8.70716885]
[1763818233991,0.002,2721.3,2721.2,12.51716885]
[1763818234694,0.002,2721.4,2721.2,16.59752218]
[1763818234898,0.002,2721.4,2721.3,9.10215807]
[1763818235065,0.002,2721.5,2721.3,12.74012522]
[1763818235265,0.002,2721.5,2721.4,8.77328946]
[1763818235495,0.002,2721.9,2721.4,8.77328946]
[1763818235496,0.002,2721.9,2721.7,0.1001]
[1763818235796,0.002,2721.9,2721.8,8.67318946]
[1763818236157,0.002,2721.9,2721.8,8.82036218]
[1763818236494,0.4781,2721.9,2721.8,4.84226218]
[1763818236700,0.963,2721.9,2721.8,4.84226218]
[1763818237198,0.963,2721.9,2721.8,8.51630141]
[1763818237494,0.963,2721.9,2721.8,4.84226218]
[1763818237695,0.963,2721.9,2721.8,8.51630141]
[1763818237881,0.963,2721.9,2721.8,4.72820459]
[1763818239073,0.963,2721.9,2721.8,3.82121195]
[1763818239280,0.963,2721.9,2721.8,4.72820459]
[1763818242701,0.963,2721.9,2721.8,1.05416536]
[1763818243905,0.963,2721.9,2721.8,4.72820459]
[1763818244105,0.963,2721.9,2721.8,1.05416536]
[1763818245208,0.963,2721.9,2721.8,0.14717272]
[1763818245376,0.963,2721.9,2721.3,8.25637972]
[1763818245576,0.4952,2721.8,2721.3,9.21937972]
[1763818245810,0.4905,2721.4,2721.3,5.54466543]
[1763818246309,0.9857,2721.4,2721.3,5.54466543]
[1763818248101,0.124,2721.6,2721.3,10.05294953]
[1763818248412,0.124,2721.6,2721.5,4.69508946]
[1763818248612,0.6192,2721.6,2721.5,4.69508946]
[1763818248812,1.1097,2721.6,2721.5,4.69508946]
[1763818249700,1.1097,2721.6,2721.5,5.79925049]
[1763818251919,1.1097,2721.6,2721.5,9.47369473]
[1763818252588,1.1097,2721.6,2721.5,8.3695337]
[1763818256223,1.1097,2721.6,2721.5,8.3705337]
[1763818260533,1.1097,2721.6,2721.5,4.69608946]
[1763818260710,1.1097,2721.6,2721.5,0.001]
[1763818261107,1.1097,2721.6,2721.2,0.001]
[1763818261428,0.4905,2721.3,2721.2,0.001]
[1763818261597,0.4905,2721.3,2721.0,0.101]
[1763818261799,0.002,2721.8,2721.0,0.101]
[1763818261800,0.4905,2721.1,2721.0,0.101]
[1763818262207,0.9857,2721.1,2721.0,4.68311208]
[1763818262538,0.124,2721.1,2721.0,4.68311208]
[1763818262827,0.124,2721.1,2721.0,4.78521208]
[1763818263629,0.124,2721.1,2721.0,4.68311208]
[1763818263931,0.6145,2721.1,2721.0,4.68311208]
[1763818264633,1.1097,2721.1,2721.0,4.68311208]
[1763818264817,1.1097,2721.1,2721.0,1.00799264]
[1763818265128,1.1097,2721.1,2721.0,0.101]
[1763818272024,1.515204,2721.1,2721.0,0.101]
[1763818275071,0.9857,2721.1,2721.0,0.101]
[1763818275274,1.1097,2721.1,2721.0,0.101]
[1763818276374,1.515204,2721.1,2721.0,0.101]
[1763818277943,0.405504,2721.1,2721.0,0.101]
[1763818278145,0.6141,2721.1,2721.0,0.101]
[1763818278349,1.1077,2721.1,2721.0,0.101]
[1763818278673,1.1077,2721.1,2721.0,4.78521208]
[1763818278674,0.124,2721.1,2721.0,4.78521208]
[1763818278971,0.002,2721.2,2721.0,4.78521208]
[1763818279171,0.002,2721.2,2721.1,1.00909264]
[1763818279373,0.6196,2721.2,2721.0,0.101]
[1763818279670,0.6196,2721.2,2721.0,3.77611944]
[1763818279671,0.4901,2721.1,2721.0,3.77611944]
[1763818280176,0.4901,2721.1,2721.0,4.68311208]
[1763818280774,0.126,2721.2,2721.1,0.90699264]
[1763818280977,0.002,2721.2,2721.1,1.00909264]
[1763818281275,0.002,2721.2,2721.1,4.78617702]
[1763818283045,0.002,2721.2,2721.1,4.68407702]
[1763818283342,0.002,2721.5,2721.1,12.13614578]
[1763818283543,0.002,2721.8,2721.5,1.31249664]
[1763818283758,0.002,2721.8,2721.7,0.1021]
[1763818284276,0.002,2721.8,2721.7,0.35138517]
[1763818285647,0.002,2721.8,2721.7,4.93255203]
[1763818286879,0.002,2721.8,2721.7,3.77627422]
[1763818287071,0.4921,2721.8,2721.7,3.67417422]
[1763818287268,0.4921,2721.8,2721.4,4.72932285]
[1763818287575,0.4901,2721.7,2721.5,0.90699264]
[1763818287757,0.4901,2721.7,2721.6,3.67430922]
[1763818287957,0.4901,2721.6,2721.5,4.58138491]
[1763818288380,0.4901,2721.6,2721.5,0.90699264]
[1763818288677,0.4901,2721.6,2721.4,4.5815719]
[1763818288842,0.9837,2721.6,2721.4,8.25615116]
[1763818289067,0.002,2721.8,2721.4,8.25615116]
[1763818289819,0.002,2721.8,2721.7,0.1021]
[1763818290299,0.4921,2721.8,2721.4,12.98547401]
[1763818291070,0.002,2721.8,2721.4,12.98547401]
[1763818293607,0.4956,2721.8,2721.4,12.98547401]
[1763818293794,0.002,2721.8,2721.4,12.98547401]
[1763818294320,0.002,2721.8,2721.7,0.1021]
[1763818294483,0.002,2721.8,2721.6,0.03674309]
[1763818294671,0.002,2721.8,2721.7,0.1021]
[1763818296510,0.002,2721.8,2721.7,4.68326686]
[1763818297310,0.9857,2721.8,2721.7,0.90699264]
[1763818298195,0.9857,2721.8,2721.3,3.6747061]
[1763818298196,0.9857,2721.8,2721.0,4.83032285]
[1763818298399,0.9857,2721.8,2721.2,0.90699264]
[1763818298400,0.4871,2721.6,2721.2,0.90699264]
[1763818298601,0.4871,2721.6,2721.4,0.90699264]
[1763818298911,0.4966,2721.5,2721.4,0.90699264]
[1763818299113,0.9837,2721.5,2721.4,0.90699264]
[1763818299412,0.9837,2721.5,2721.2,0.90699264]
[1763818299610,0.4871,2721.3,2721.2,0.90699264]
[1763818300261,0.002,2721.8,2721.2,0.90699264]
[1763818300378,0.4871,2721.3,2721.2,0.90699264]
[1763818300907,0.4871,2721.3,2721.2,4.58184197]
[1763818301094,0.4966,2721.6,2721.2,8.2566913]
[1763818301278,0.4966,2721.6,2721.2,4.58184197]
[1763818302308,0.4966,2721.6,2721.2,0.90699264]
[1763818302309,0.4871,2721.3,2721.2,0.90699264]
[1763818302508,0.9837,2721.3,2721.2,0.90699264]
[1763818302914,0.124,2721.6,2721.2,4.58184197]
[1763818303213,0.6206,2721.6,2721.2,8.2566913]
[1763818306823,0.6206,2721.6,2721.2,0.90699264]
[1763818307029,0.4871,2721.3,2721.1,0.90699264]
[1763818307236,0.4871,2721.2,2721.0,3.911]
[1763818307404,0.4871,2721.1,2721.0,7.58611944]
[1763818307604,0.4871,2721.1,2721.0,4.81799264]
[1763818307844,0.9837,2721.1,2721.0,8.49311208]
[1763818308019,0.9837,2721.1,2721.0,4.81799264]
[1763818311429,0.9837,2721.1,2721.0,1.00799264]
[1763818311645,0.9837,2721.1,2721.0,0.101]
[1763818313441,1.1077,2721.1,2721.0,0.101]
[1763818314009,0.9837,2721.1,2721.0,0.101]
[1763818314209,1.1077,2721.1,2721.0,0.101]
[1763818314411,0.4871,2721.1,2721.0,0.101]
[1763818314850,0.9837,2721.1,2721.0,0.101]
[1763818321075,1.389204,2721.1,2721.0,0.101]
[1763818324778,0.405504,2720.7,2720.4,0.001]
[1763818325077,0.6111,2720.6,2720.4,0.001]
[1763818325285,1.1077,2720.6,2720.4,0.001]
[1763818326565,1.513204,2720.6,2720.4,0.001]
[1763818326769,0.405504,2720.5,2720.4,0.001]
[1763818326965,1.316504,2720.5,2720.4,0.001]
[1763818328395,0.911,2720.5,2720.4,0.001]
[1763818328704,0.002,2721.5,2720.5,3.67579489]
[1763818329013,0.455,2721.2,2720.5,7.45368978]
[1763818329190,0.7634,2721.4,2720.5,7.55578978]
[1763818329498,0.7634,2721.4,2720.5,3.77789489]
[1763818329704,0.455,2721.3,2720.5,0.1021]
[1763818330668,0.455,2721.3,2720.4,3.67688352]
[1763818330876,0.405504,2721.2,2720.4,3.67688352]
[1763818331189,0.455,2721.1,2720.4,0.001]
[1763818333393,0.456,2720.5,2720.4,0.001]
[1763818333595,0.58,2720.5,2720.4,0.001]
[1763818333793,1.035,2720.5,2720.4,0.001]
[1763818334400,0.124,2720.5,2720.4,0.001]
[1763818334994,1.035,2720.5,2720.4,0.001]
[1763818335480,1.440504,2720.5,2720.4,0.001]
[1763818338083,0.124,2720.5,2720.4,0.1031]
[1763818338310,0.124,2720.5,2720.4,0.001]
[1763818339222,1.035,2720.5,2720.4,0.001]
[1763818343611,0.002,2720.6,2720.4,0.001]
[1763818343812,0.124,2720.5,2720.4,0.001]
[1763818344602,0.124,2720.5,2720.4,0.1031]
[1763818346626,0.124,2720.5,2720.4,0.001]
[1763818346834,0.58,2720.5,2720.4,0.001]
[1763818347210,0.124,2720.5,2720.4,0.001]
[1763818348632,0.124,2720.5,2720.4,0.1031]
[1763818349542,0.002,2720.6,2720.4,0.2052]
[1763818349728,0.126,2720.6,2720.5,0.1021]
[1763818350137,0.126,2720.6,2720.5,0.2042]
[1763818350520,0.126,2720.6,2720.5,4.78698753]
[1763818354350,0.002,2720.6,2720.5,4.78698753]
[1763818354654,0.002,2720.6,2720.5,4.82374547]
[1763818354968,0.002,2720.6,2720.5,8.66198753]
[1763818355315,0.002,2720.9,2720.6,4.78199264]
[1763818355520,0.002,2720.9,2720.8,6.02034141]
[1763818356028,0.002,2720.9,2720.8,6.26967426]
[1763818357223,0.002,2720.9,2720.8,9.98181774]
[1763818357534,0.002,2720.9,2720.8,4.93381508]
[1763818358861,0.002,2720.9,2720.8,8.63333612]
[1763818359066,0.002,2720.9,2720.8,8.59658223]
[1763818360261,0.002,2720.9,2720.8,8.49448223]
[1763818360456,0.002,2720.9,2720.6,3.82286225]
[1763818360657,0.002,2720.9,2720.8,0.1021]
[1763818360954,0.002,2720.9,2720.7,0.90699264]
[1763818361360,0.002,2720.9,2720.5,7.35258978]
[1763818361561,0.1882,2720.9,2720.5,3.67679489]
[1763818361723,0.1882,2720.9,2720.6,0.90699264]
[1763818361724,0.6514,2720.9,2720.6,0.90699264]
[1763818362422,0.1882,2720.9,2720.6,0.90699264]
[1763818362625,0.002,2720.9,2720.6,0.90699264]
[1763818362825,0.002,2720.9,2720.8,0.1021]
[1763818363026,0.002,2720.9,2720.6,0.90699264]
[1763818363540,0.002,2720.9,2720.8,3.77748959]
[1763818365576,0.002,2720.9,2720.8,4.78658223]
[1763818366264,0.002,2720.9,2720.8,8.66158223]
[1763818367899,0.002,2720.9,2720.8,4.68448223]
[1763818368061,0.002,2720.9,2720.8,4.78658223]
[1763818368240,0.002,2720.9,2720.8,4.82333612]
[1763818368626,0.002,2720.9,2720.8,4.68448223]
[1763818368826,0.002,2720.9,2720.8,3.77748959]
[1763818369158,0.002,2720.9,2720.8,4.72123612]
[1763818369358,0.002,2720.9,2720.8,4.68448223]
[1763818369664,0.002,2720.9,2720.8,4.78658223]
[1763818374854,0.002,2720.9,2720.8,4.82333612]
[1763818375770,0.002,2720.9,2720.8,4.68448223]
[1763818376275,0.002,2720.9,2720.8,4.82333612]
[1763818376586,0.002,2720.9,2720.8,8.63333612]
[1763818376745,0.002,2720.9,2720.8,8.59658223]
[1763818379400,0.002,2720.9,2720.8,8.39238223]
[1763818379610,0.4983,2720.9,2720.8,8.39238223]
[1763818380698,0.002,2720.9,2720.8,8.49448223]
[1763818381724,0.4983,2720.9,2720.8,8.39238223]
[1763818382002,0.002,2720.9,2720.8,8.39238223]
[1763818382205,0.002,2720.9,2720.8,8.49448223]
[1763818383707,0.002,2720.9,2720.8,8.59658223]
[1763818386310,0.002,2720.9,2720.8,8.49448223]
[1763818386496,0.002,2720.9,2720.8,8.39238223]
[1763818386876,0.002,2720.9,2720.8,8.49448223]
[1763818388222,0.002,2720.9,2720.8,12.36948223]
[1763818388510,0.002,2720.9,2720.8,12.47158223]
[1763818388902,0.002,2720.9,2720.8,17.19747816]
[1763818391194,0.002,2721.2,2721.0,3.875]
[1763818391392,0.002,2721.2,2721.1,7.7871]
[1763818392490,0.002,2721.2,2721.1,8.79619264]
[1763818392920,0.002,2721.2,2721.1,12.3297225]
[1763818393098,0.002,2721.2,2721.1,16.15193051]
[1763818393295,0.002,2721.5,2721.1,16.15193051]
[1763818393296,0.002,2721.5,2721.2,1.31249664]
[1763818393611,0.002,2721.9,2721.7,4.78199264]
[1763818393914,0.002,2721.9,2721.7,8.5197225]
[1763818394331,0.002,2722.4,2722.0,11.84905236]
[1763818394531,0.002,2722.4,2722.0,11.95115236]
[1763818394719,0.002,2722.4,2722.0,12.05325236]
[1763818394907,0.002,2722.4,2722.0,9.70774107]
[1763818395233,0.002,2722.4,2722.0,13.38151035]
[1763818396202,0.002,2722.4,2722.0,14.12869644]
[1763818396506,0.002,2722.4,2722.0,10.25369644]
[1763818397036,0.002,2722.4,2722.1,0.90699264]
[1763818397251,0.002,2722.7,2722.4,0.90699264]
[1763818397536,0.002,2722.7,2722.4,5.73064107]
[1763818397906,0.002,2722.7,2722.4,6.21654107]
[1763818398925,0.4879,2722.7,2722.4,6.11444107]
[1763818399823,0.002,2722.7,2722.4,9.99187057]
[1763818400138,0.002,2722.7,2722.4,13.66510007]
[1763818400318,0.002,2722.7,2722.6,0.1021]
[1763818400715,0.1827,2723.6,2722.6,0.2042]
[1763818400945,0.1827,2723.6,2723.3,0.90699264]
[1763818401410,0.4859,2723.9,2723.3,0.90699264]
[1763818401940,0.4859,2723.9,2723.5,0.90699264]
[1763818402305,0.4744,2723.6,2723.5,0.90699264]
[1763818402708,0.9603,2723.6,2723.5,0.90699264]
[1763818402906,0.9603,2723.6,2723.2,0.90699264]
[1763818403107,0.4744,2723.3,2722.6,0.9603]
[1763818403337,0.4744,2723.1,2722.6,0.9603]
[1763818403530,0.6056,2722.7,2722.5,0.90699264]
[1763818403728,0.6056,2722.7,2722.5,0.4859]
[1763818403934,0.9603,2722.6,2722.5,3.67309458]
[1763818404239,0.4859,2722.9,2722.6,0.90699264]
[1763818404407,0.4859,2723.3,2722.9,0.90699264]
[1763818404614,0.4859,2723.9,2722.9,0.90699264]
[1763818404940,0.4744,2723.0,2722.9,0.90699264]
[1763818405481,0.9603,2723.0,2722.9,0.90699264]
[1763818405653,0.4859,2723.5,2722.9,0.90699264]
[1763818406115,0.4859,2723.5,2722.9,8.25200667]
[1763818406720,0.4859,2723.7,2722.9,11.92456166]
[1763818407247,0.4744,2723.0,2722.9,4.57945168]
[1763818407621,0.124,2723.8,2722.9,8.25200667]
[1763818407622,0.4859,2723.3,2722.9,8.25200667]
[1763818408013,0.4744,2723.0,2722.9,0.90699264]
[1763818408212,0.4744,2723.0,2722.8,3.67262521]
[1763818408530,0.124,2723.8,2722.4,8.39475512]
[1763818408531,0.405504,2723.7,2722.5,3.67307332]
[1763818408736,0.4744,2722.6,2722.5,4.58006596]
[1763818409107,0.9603,2722.6,2722.5,4.58006596]
[1763818409321,0.4744,2722.6,2722.5,4.58006596]
[1763818411231,0.9603,2722.6,2722.5,8.45606596]
[1763818411461,0.9603,2722.6,2722.5,4.58106596]
[1763818414264,0.4744,2722.6,2722.5,4.58106596]
[1763818415061,0.4859,2723.2,2722.6,0.90699264]
[1763818415260,0.124,2723.1,2722.6,0.90699264]
[1763818415489,0.6617,2722.7,2722.5,0.001]
[1763818415665,0.4744,2722.6,2722.5,0.001]
[1763818415973,0.9691,2722.6,2722.5,0.001]
[1763818416432,0.9745,2722.6,2722.5,4.58108722]
[1763818416835,0.4798,2722.6,2722.5,4.58108722]
[1763818417146,0.9364,2722.6,2722.5,4.58108722]
[1763818417341,0.9364,2722.6,2722.5,0.90799264]
[1763818417547,0.9364,2722.6,2722.5,0.001]
[1763818418269,0.9364,2722.6,2722.2,3.67439064]
[1763818418270,0.9364,2722.6,2722.2,0.001]
[1763818418443,0.4598,2722.3,2722.2,0.001]
[1763818418847,0.9164,2722.3,2722.2,0.001]
[1763818420137,1.321904,2722.3,2722.2,0.001]
[1763818420650,1.321904,2722.3,2721.9,0.001]
[1763818420651,0.405504,2722.2,2721.9,0.001]
[1763818420853,0.4598,2722.0,2721.9,0.001]
[1763818421053,0.5838,2722.0,2721.9,0.001]
[1763818421248,1.0404,2722.0,2721.9,0.001]
[1763818421787,1.445904,2722.0,2721.9,0.001]
[1763818422085,0.405504,2721.9,2720.5,3.6766932]
[1763818422276,1.048904,2721.9,2720.5,7.35248809]
[1763818422580,1.048904,2721.9,2720.8,0.90699264]
[1763818422783,0.4566,2721.8,2720.8,0.90699264]
[1763818423360,0.124,2721.7,2720.8,0.90699264]
[1763818423775,0.4566,2721.6,2720.8,0.90699264]
[1763818424060,0.4566,2721.6,2720.9,0.90699264]
[1763818424863,0.4598,2721.0,2720.9,0.90699264]
[1763818425086,0.5838,2721.0,2720.9,0.90699264]
[1763818425263,1.0404,2721.0,2720.9,0.90699264]
[1763818425470,1.0404,2721.0,2720.8,0.90699264]
[1763818425791,0.124,2721.0,2720.8,0.90699264]
[1763818425978,0.124,2721.0,2720.9,3.67525451]
[1763818426375,0.4566,2721.7,2721.0,0.90699264]
[1763818426691,0.124,2721.6,2721.0,0.90699264]
[1763818426893,0.4566,2721.7,2721.2,0.90699264]
[1763818427071,0.124,2721.6,2721.2,0.90699264]
[1763818427596,0.6434,2721.9,2721.5,4.72154843]
[1763818427794,0.124,2721.8,2721.5,4.72154843]
[1763818428211,0.124,2721.8,2721.6,3.67430922]
[1763818428619,0.4598,2721.7,2721.6,3.67430922]
[1763818429712,0.4598,2721.7,2721.5,8.39593673]
[1763818429879,0.4598,2721.7,2721.5,8.39693673]
[1763818430894,0.4598,2721.7,2721.5,0.90799264]
[1763818430895,0.4598,2721.6,2721.5,0.90799264]
[1763818431299,0.9164,2721.6,2721.5,0.90799264]
[1763818432876,0.9164,2721.6,2721.5,0.001]
[1763818436379,1.321904,2721.6,2721.3,0.001]
[1763818436603,0.865304,2721.4,2721.3,0.001]
[1763818437116,0.405504,2721.3,2721.0,0.001]
[1763818437317,0.865304,2721.1,2721.0,0.001]
[1763818437616,0.405504,2721.0,2720.5,0.001]
[1763818437918,1.024304,2720.6,2720.5,0.001]
[1763818438212,1.148304,2720.6,2720.5,0.001]
[1763818438414,1.604904,2720.6,2720.5,0.001]
[1763818438915,1.1994,2720.6,2720.5,0.001]
[1763818439385,1.604904,2720.6,2720.5,0.001]
[1763818441483,0.405504,2720.5,2720.4,0.001]
[1763818441690,1.5229448,2720.5,2720.4,0.001]
[1763818442712,1.6469448,2720.5,2720.4,0.001]
[1763818443132,0.4598,2720.5,2720.4,0.001]
[1763818443315,0.5838,2720.5,2720.4,0.001]
[1763818443518,0.159,2720.6,2720.4,0.001]
[1763818443832,1.0404,2720.5,2720.4,0.001]
[1763818445832,0.124,2720.5,2720.4,0.001]
[1763818446128,0.124,2720.5,2720.4,0.1041]
[1763818447013,0.6554,2721.0,2720.4,3.78003001]
[1763818447311,0.124,2720.9,2720.7,4.72154843]
[1763818447727,0.124,2720.9,2720.8,0.1031]
[1763818448230,0.124,2720.9,2720.8,1.11319264]
[1763818448435,0.124,2720.9,2720.7,4.72154843]
[1763818448733,0.124,2720.9,2720.5,0.90699264]